bitfinex/quotes_BTCUSD_20240602
["timestamp","ask_amount","ask_price","bid_price","bid_amount"]
[1717359789970,0.004946,67631.0,67630.0,1.70010559]
[1717359790173,0.003946,67631.0,67630.0,1.66310559]
[1717359790391,0.001946,67631.0,67630.0,1.53513134]
[1717359790615,0.001946,67631.0,67630.0,1.75178757]
[1717359790861,0.001946,67631.0,67630.0,1.99583159]
[1717359790862,0.004946,67631.0,67630.0,1.99583159]
[1717359791324,0.000946,67631.0,67630.0,1.84894264]
[1717359792778,0.000946,67631.0,67630.0,1.88594264]
[1717359792986,0.000946,67631.0,67630.0,1.92294264]
[1717359793199,0.000946,67631.0,67630.0,1.98594264]
[1717359793587,0.000946,67631.0,67630.0,2.02294264]
[1717359793790,0.000946,67631.0,67630.0,2.04047329]
[1717359794199,0.000946,67631.0,67630.0,2.15118653]
[1717359795220,0.000946,67631.0,67630.0,1.9345303]
[1717359795462,0.000946,67631.0,67630.0,2.05157326]
[1717359795835,0.000946,67631.0,67630.0,2.04047329]
[1717359796289,0.4796,67649.0,67648.0,0.147824]
[1717359796479,0.2316,67652.0,67651.0,0.147817]
[1717359796669,0.43733372,67659.0,67654.0,0.14781]
[1717359796670,0.2316,67658.0,67654.0,0.14781]
[1717359796900,0.2316,67658.0,67657.0,0.05]
[1717359797233,0.2316,67658.0,67657.0,0.19577791]
[1717359799199,0.0755,67658.0,67657.0,0.34858191]
[1717359799408,0.0755,67658.0,67657.0,0.52194123]
[1717359799634,0.0755,67658.0,67657.0,0.49694123]
[1717359799869,0.0755,67658.0,67657.0,0.53394123]
[1717359800296,0.0755,67658.0,67657.0,0.49694123]
[1717359800511,0.0755,67658.0,67657.0,0.53394123]
[1717359800740,0.0755,67658.0,67657.0,0.57094123]
[1717359801195,0.1561,67660.0,67657.0,0.57094123]
[1717359801196,0.1561,67660.0,67657.0,0.46013723]
[1717359801425,0.1561,67660.0,67658.0,0.14577791]
[1717359801635,0.1561,67660.0,67659.0,0.147799]
[1717359801861,0.1561,67660.0,67659.0,0.29357691]
[1717359802083,0.1561,67660.0,67659.0,0.44693429]
[1717359802522,0.0755,67666.0,67659.0,0.44693429]
[1717359802710,0.0755,67666.0,67663.0,0.05]
[1717359802711,0.157046,67664.0,67663.0,0.05]
[1717359802945,0.157046,67664.0,67663.0,0.34356891]
[1717359803157,0.000946,67664.0,67663.0,0.49691177]
[1717359803360,0.000946,67664.0,67663.0,0.4969105]
[1717359804389,0.000946,67664.0,67663.0,0.5169105]
[1717359804818,0.000946,67664.0,67663.0,0.4969105]
[1717359805090,0.000946,67664.0,67663.0,0.5009105]
[1717359805514,0.000946,67664.0,67663.0,0.34756891]
[1717359805745,0.000946,67664.0,67663.0,0.49690869]
[1717359805966,0.000946,67664.0,67663.0,0.53390869]
[1717359806169,0.000946,67664.0,67663.0,0.57090869]
[1717359807222,0.000946,67664.0,67663.0,0.41756891]
[1717359811499,0.000946,67664.0,67663.0,0.57090688]
[1717359812734,0.00087425,67664.0,67663.0,0.57090688]
[1717359812953,0.00087425,67664.0,67663.0,0.52090688]
[1717359813152,0.00087425,67664.0,67663.0,0.57090688]
[1717359813555,0.00087425,67664.0,67663.0,0.41756891]
[1717359813904,0.00087425,67664.0,67663.0,0.57090818]
[1717359817398,0.00087425,67664.0,67663.0,0.52090818]
[1717359817633,0.00087425,67664.0,67663.0,0.57090818]
[1717359826181,0.00087425,67664.0,67663.0,0.52090818]
[1717359826355,0.00087425,67664.0,67663.0,0.57090818]
[1717359832562,0.00087425,67664.0,67663.0,0.94215568]
[1717359833201,0.00087425,67664.0,67663.0,1.15881191]
[1717359833411,0.00087425,67664.0,67663.0,1.41739391]
[1717359833835,0.00087425,67664.0,67663.0,1.45439391]
[1717359834059,0.00087425,67664.0,67663.0,1.41739391]
[1717359834276,0.00087425,67664.0,67663.0,1.45439391]
[1717359834494,0.00087425,67664.0,67663.0,1.60989391]
[1717359834707,0.00087425,67664.0,67663.0,1.41623768]
[1717359834924,0.00087425,67664.0,67663.0,1.59589391]
[1717359835660,0.00087425,67664.0,67663.0,1.63289391]
[1717359835863,0.00087425,67664.0,67663.0,1.66989391]
[1717359836547,0.00087425,67664.0,67663.0,1.59589391]
[1717359837053,0.00087425,67664.0,67663.0,1.85447591]
[1717359837267,0.00087425,67664.0,67663.0,1.92847591]
[1717359837483,0.00087425,67664.0,67663.0,1.92933591]
[1717359837738,0.00087425,67664.0,67663.0,1.96633591]
[1717359837968,0.00087425,67664.0,67663.0,1.92933591]
[1717359838185,0.00087425,67664.0,67663.0,2.0104851]
[1717359838608,0.00087425,67664.0,67663.0,1.9734851]
[1717359838775,0.00087425,67664.0,67663.0,2.0104851]
[1717359839547,0.00087425,67664.0,67663.0,1.9364851]
[1717359839785,0.00087425,67664.0,67663.0,1.9734851]
[1717359840384,0.00087425,67664.0,67663.0,2.0104851]
[1717359841161,0.00087425,67664.0,67663.0,1.96633591]
[1717359843063,0.00087425,67664.0,67663.0,2.0325597]
[1717359843276,0.000946,67678.0,67677.0,0.14776]
[1717359843484,0.000946,67678.0,67677.0,0.49687718]
[1717359844422,0.000946,67678.0,67677.0,0.53387718]
[1717359844981,0.000946,67678.0,67677.0,0.57087718]
[1717359845190,0.000946,67678.0,67677.0,0.52087718]
[1717359845565,0.245346,67678.0,67677.0,0.57087718]
[1717359847280,0.0645985,67678.0,67677.0,0.52087718]
[1717359847478,0.0645985,67678.0,67677.0,0.37311718]
[1717359847479,0.3089985,67678.0,67677.0,0.37311718]
[1717359848543,0.245346,67678.0,67677.0,0.52087718]
[1717359848724,0.3089985,67678.0,67677.0,0.52087718]
[1717359849135,0.245346,67678.0,67677.0,0.37311718]
[1717359849344,0.3189985,67678.0,67677.0,0.37311718]
[1717359849552,0.3189985,67678.0,67677.0,0.22733927]
[1717359850394,0.3189985,67678.0,67677.0,0.19033927]
[1717359850606,0.3189985,67678.0,67677.0,0.22733927]
[1717359851049,0.3189985,67678.0,67677.0,0.19033927]
[1717359851250,0.3189985,67678.0,67677.0,0.15333927]
[1717359852527,0.3189985,67678.0,67677.0,0.22733927]
[1717359852668,0.3189985,67678.0,67677.0,0.074]
[1717359856107,0.3189985,67678.0,67677.0,0.22732531]
[1717359856494,0.3189985,67678.0,67677.0,0.074]
[1717359856946,0.3189985,67678.0,67677.0,0.22732649]
[1717359858767,0.245346,67678.0,67677.0,0.22732649]
[1717359858961,0.245346,67678.0,67677.0,0.27732649]
[1717359859427,0.000946,67678.0,67677.0,0.4231044]
[1717359863042,0.000946,67678.0,67677.0,0.42308728]
[1717359863621,0.000946,67678.0,67677.0,0.37308728]
[1717359863831,0.000946,67678.0,67677.0,0.42308728]
[1717359867528,0.000946,67678.0,67677.0,0.57084728]
[1717359881439,0.000946,67678.0,67677.0,0.52084728]
[1717359881645,0.000946,67678.0,67677.0,0.57084728]
[1717359882516,0.000946,67678.0,67677.0,0.73614728]
[1717359883987,0.000946,67678.0,67677.0,0.69914728]
[1717359884818,0.000946,67678.0,67677.0,0.97234728]
[1717359885172,0.000946,67678.0,67677.0,1.00934728]
[1717359885375,0.000946,67678.0,67677.0,1.04634728]
[1717359889257,0.000946,67678.0,67677.0,1.06852745]
[1717359889930,0.000946,67678.0,67677.0,1.01852745]
[1717359890103,0.000946,67678.0,67677.0,1.04634728]
[1717359890311,0.000946,67678.0,67677.0,1.01852745]
[1717359890530,0.000946,67678.0,67677.0,1.06852745]
[1717359890736,0.000946,67678.0,67677.0,1.06851425]
[1717359891963,0.000946,67678.0,67677.0,1.04633575]
[1717359894101,0.000946,67678.0,67677.0,1.47820425]
[1717359894299,0.000946,67678.0,67677.0,1.50038275]
[1717359894725,0.000946,67678.0,67677.0,1.47820425]
[1717359895354,0.000946,67678.0,67677.0,1.65670425]
[1717359895551,0.000946,67678.0,67677.0,1.70099375]
[1717359896646,0.000946,67678.0,67677.0,1.66464625]
[1717359897253,0.000946,67678.0,67677.0,1.70099375]
[1717359900394,0.000946,67678.0,67677.0,1.99651475]
[1717359900814,0.000946,67678.0,67677.0,1.99650262]
[1717359902879,0.000946,67678.0,67677.0,1.95221312]
[1717359903311,0.000946,67678.0,67677.0,2.01864737]
[1717359903975,0.000946,67688.0,67687.0,0.8240855]
[1717359904195,0.000946,67688.0,67687.0,1.88832612]
[1717359905118,0.000946,67688.0,67687.0,1.80197862]
[1717359905586,0.000946,67688.0,67687.0,1.85197862]
[1717359906242,0.000946,67688.0,67687.0,1.23930162]
[1717359906467,0.000946,67688.0,67687.0,1.08380162]
[1717359906699,0.000946,67688.0,67687.0,0.67380162]
[1717359906927,0.232846,67688.0,67687.0,0.72380162]
[1717359907154,0.232846,67688.0,67687.0,0.57080162]
[1717359907370,0.232846,67688.0,67687.0,0.52080162]
[1717359907624,0.232846,67688.0,67687.0,0.57080162]
[1717359915564,0.232846,67688.0,67687.0,0.52080162]
[1717359915770,0.232846,67688.0,67687.0,0.57080162]
[1717359916225,0.232846,67688.0,67687.0,0.58892257]
[1717359916559,0.082346,67688.0,67687.0,0.58892257]
[1717359917682,0.000946,67688.0,67687.0,0.58892257]
[1717359917827,0.000946,67688.0,67687.0,0.82952257]
[1717359918031,0.000946,67688.0,67687.0,1.41684707]
[1717359918233,0.000946,67688.0,67687.0,1.78984707]
[1717359919407,0.000946,67688.0,67687.0,1.71584707]
[1717359919645,0.000946,67688.0,67687.0,1.75284707]
[1717359920277,0.000946,67688.0,67687.0,1.78984707]
[1717359922101,0.000946,67688.0,67687.0,1.75349957]
[1717359922674,0.000946,67688.0,67687.0,1.78984707]
[1717359924387,0.000946,67688.0,67687.0,1.83411465]
[1717359924593,0.000946,67688.0,67687.0,1.79711465]
[1717359924808,0.000946,67688.0,67687.0,1.76011465]
[1717359925008,0.000946,67688.0,67687.0,1.83411465]
[1717359925445,0.000946,67688.0,67687.0,1.79711465]
[1717359925919,0.000946,67688.0,67687.0,1.83411465]
[1717359928275,0.000946,67688.0,67687.0,2.08532407]
[1717359928474,0.000946,67688.0,67687.0,2.12954496]
[1717359929079,0.000946,67688.0,67687.0,2.09254496]
[1717359929275,0.000946,67688.0,67687.0,2.04832407]
[1717359929479,0.000946,67688.0,67687.0,2.12954535]
[1717359929870,0.000946,67688.0,67687.0,2.09254535]
[1717359930352,0.000946,67688.0,67687.0,2.04832407]
[1717359931306,0.000946,67688.0,67687.0,2.08532407]
[1717359932429,0.000946,67688.0,67687.0,2.29927337]
[1717359933446,0.000946,67688.0,67687.0,2.14576961]
[1717359933672,0.000946,67688.0,67687.0,2.29902455]
[1717359934503,0.000946,67688.0,67687.0,2.22502455]
[1717359934863,0.000946,67688.0,67687.0,2.29902455]
[1717359936294,0.000946,67688.0,67687.0,2.0852933]
[1717359938247,0.000946,67688.0,67687.0,2.15162851]
[1717359938796,0.000946,67688.0,67687.0,2.36535976]
[1717359938997,0.000946,67688.0,67687.0,2.0852933]
[1717359939209,0.000946,67688.0,67687.0,2.15162851]
[1717359939414,0.000946,67688.0,67687.0,2.36535976]
[1717359942171,0.000946,67688.0,67687.0,2.0852933]
[1717359942598,0.000946,67688.0,67687.0,2.15162851]
[1717359943673,0.000946,67688.0,67687.0,2.21074651]
[1717359943878,0.000946,67688.0,67687.0,2.42447776]
[1717359944155,0.001892,67688.0,67687.0,2.16074651]
[1717359944381,0.001892,67688.0,67687.0,2.42447776]
[1717359946224,0.001892,67688.0,67687.0,2.35814255]
[1717359946444,0.001892,67688.0,67687.0,2.42452079]
[1717359946981,0.001892,67688.0,67687.0,2.35814255]
[1717359949151,0.153719,67696.0,67695.0,0.147721]
[1717359949392,0.153719,67696.0,67695.0,0.49675385]
[1717359949828,0.232919,67696.0,67695.0,0.49675385]
[1717359950380,0.232919,67696.0,67695.0,0.53375385]
[1717359951201,0.232919,67696.0,67695.0,0.57075385]
[1717359956258,0.232919,67696.0,67695.0,0.52075385]
[1717359956951,0.232919,67696.0,67695.0,0.57075385]
[1717359961686,0.232919,67696.0,67695.0,0.52075385]
[1717359961906,0.232919,67696.0,67695.0,0.57075385]
[1717359962501,0.232919,67696.0,67695.0,0.64738797]
[1717359963596,0.232919,67696.0,67695.0,0.61470452]
[1717359963755,0.232919,67696.0,67695.0,0.66470452]
[1717359965203,0.232919,67696.0,67695.0,0.61470452]
[1717359965409,0.232919,67696.0,67695.0,0.66470452]
[1717359967208,0.232919,67696.0,67695.0,0.5880704]
[1717359967793,0.2965715,67696.0,67695.0,0.5880704]
[1717359968001,0.232919,67696.0,67695.0,0.5880704]
[1717359969372,0.233865,67696.0,67695.0,0.5880704]
[1717359971945,0.233865,67696.0,67695.0,0.66470549]
[1717359972369,0.233865,67696.0,67695.0,0.5880704]
[1717359973895,0.2975175,67696.0,67695.0,0.5880704]
[1717359974117,0.3075175,67696.0,67695.0,0.37303285]
[1717359975499,0.3075175,67696.0,67695.0,0.33603285]
[1717359975716,0.3075175,67696.0,67695.0,0.37303285]
[1717359975923,0.3075175,67696.0,67695.0,0.33603285]
[1717359976126,0.3075175,67696.0,67695.0,0.37303285]
[1717359981428,0.3075175,67696.0,67695.0,0.074]
[1717359982186,0.0736525,67691.0,67690.0,0.00086]
[1717359982388,0.3170525,67691.0,67690.0,0.29992856]
[1717359983477,0.3170525,67691.0,67690.0,0.33692856]
[1717359983708,0.3070525,67691.0,67690.0,0.33692856]
[1717359983916,0.2434,67691.0,67690.0,0.33692856]
[1717359984582,0.2434,67691.0,67690.0,0.37392856]
[1717359986742,0.3070525,67691.0,67690.0,0.37392856]
[1717359987035,0.3170525,67691.0,67690.0,0.37392856]
[1717359987264,0.2434,67691.0,67690.0,0.37392856]
[1717359987754,0.3170525,67691.0,67690.0,0.37392856]
[1717359989421,0.3070525,67691.0,67690.0,0.37392856]
[1717359990521,0.2434,67691.0,67690.0,0.37392856]
[1717359992358,0.000946,67696.0,67695.0,0.147721]
[1717359992564,0.000946,67696.0,67695.0,0.73807616]
[1717359993687,0.001946,67696.0,67695.0,0.77507616]
[1717359994176,0.001946,67696.0,67695.0,0.81207616]
[1717359994500,0.001946,67696.0,67695.0,0.55777616]
[1717359994759,0.001946,67696.0,67695.0,0.60777616]
[1717359995423,0.000946,67696.0,67695.0,0.49677616]
[1717359995540,0.000946,67696.0,67695.0,0.53377616]
[1717359995744,0.000946,67696.0,67695.0,0.57077616]
[1717359996166,0.000946,67696.0,67695.0,0.53377616]
[1717359996367,0.000946,67696.0,67695.0,0.57077616]
[1717360001374,0.000946,67696.0,67695.0,0.52077616]
[1717360001523,0.000946,67696.0,67695.0,0.57077616]
[1717360011177,0.00076819,67696.0,67695.0,0.57077616]
[1717360016138,0.00076819,67696.0,67695.0,0.65247616]
[1717360020568,0.00076819,67696.0,67695.0,0.60247616]
[1717360020699,0.00076819,67696.0,67695.0,0.65247616]
[1717360027276,0.00076819,67696.0,67695.0,0.57077616]
[1717360029635,0.00076819,67696.0,67695.0,0.52077616]
[1717360029843,0.07442069,67696.0,67695.0,0.52077616]
[1717360030075,0.31942069,67696.0,67695.0,0.52077616]
[1717360030892,0.31942069,67696.0,67695.0,0.37305516]
[1717360035463,0.30942069,67696.0,67695.0,0.37305516]
[1717360035667,0.31942069,67696.0,67695.0,0.37305516]
[1717360037053,0.31942069,67696.0,67695.0,0.37391516]
[1717360038252,0.30942069,67696.0,67695.0,0.37391516]
[1717360039509,0.31942069,67696.0,67695.0,0.37391516]
[1717360048930,0.24576819,67696.0,67695.0,0.37391516]
[1717360050747,0.31942069,67696.0,67695.0,0.37391516]
[1717360053545,0.30942069,67696.0,67695.0,0.37391516]
[1717360053774,0.31942069,67696.0,67695.0,0.37391516]
[1717360054253,0.30942069,67696.0,67695.0,0.37391516]
[1717360054935,0.31942069,67696.0,67695.0,0.37391516]
[1717360058262,0.00076819,67696.0,67695.0,0.52163616]
[1717360058503,0.00076819,67696.0,67695.0,0.84117224]
[1717360058731,0.00076819,67696.0,67695.0,0.89117224]
[1717360064489,0.00076819,67696.0,67695.0,0.84117224]
[1717360064736,0.00076819,67696.0,67695.0,0.89117224]
[1717360064943,0.00076819,67696.0,67695.0,0.84117224]
[1717360065142,0.00076819,67696.0,67695.0,0.89117224]
[1717360065341,0.00076819,67696.0,67695.0,0.84117224]
[1717360065552,0.00076819,67696.0,67695.0,0.72967224]
[1717360070446,0.00076819,67696.0,67695.0,0.88917224]
[1717360081712,0.00076819,67696.0,67695.0,0.88915699]
[1717360085862,0.00076819,67696.0,67695.0,1.18459899]
[1717360086062,0.00076819,67696.0,67695.0,1.58004099]
[1717360086269,0.00076819,67696.0,67695.0,1.63938849]
[1717360086496,0.00076819,67696.0,67695.0,1.92882643]
[1717360086711,0.00076819,67696.0,67695.0,1.84027068]
[1717360087144,0.00076819,67696.0,67695.0,1.76627068]
[1717360087351,0.00076819,67696.0,67695.0,1.92882687]
[1717360088360,0.00076819,67696.0,67695.0,1.89247937]
[1717360088564,0.00076819,67696.0,67695.0,1.60304099]
[1717360088766,0.00076819,67696.0,67695.0,1.63938849]
[1717360089177,0.00076819,67696.0,67695.0,1.70579598]
[1717360093356,0.00076819,67696.0,67695.0,1.86129598]
[1717360093553,0.009427,67699.0,67698.0,1.6075195]
[1717360093554,0.00577898,67699.0,67698.0,1.6075195]
[1717360093755,0.00577898,67699.0,67698.0,1.95655941]
[1717360093956,0.00577898,67699.0,67698.0,2.14473833]
[1717360094164,0.00577898,67699.0,67698.0,2.25707768]
[1717360094380,0.00577898,67699.0,67698.0,2.34555058]
[1717360094614,0.00577898,67699.0,67698.0,2.14466839]
[1717360094820,0.00577898,67699.0,67698.0,2.39407768]
[1717360095025,0.00577898,67699.0,67698.0,2.43107768]
[1717360095226,0.00577898,67699.0,67698.0,2.28164807]
[1717360095437,0.00577898,67699.0,67698.0,2.31864807]
[1717360096711,0.00577898,67699.0,67698.0,2.32807507]
[1717360097321,0.00577898,67699.0,67698.0,2.23962249]
[1717360098582,0.00377898,67699.0,67698.0,2.23962249]
[1717360099171,0.00377898,67699.0,67698.0,2.32803807]
[1717360099377,0.00377898,67699.0,67698.0,2.23962249]
[1717360099785,0.00377898,67699.0,67698.0,2.16562249]
[1717360099984,0.00377898,67699.0,67698.0,2.20262249]
[1717360100184,0.00377898,67699.0,67698.0,2.23962249]
[1717360102429,0.00377898,67699.0,67698.0,2.30590823]
[1717360103236,0.00377898,67699.0,67698.0,2.23962249]
[1717360104518,0.00377898,67699.0,67698.0,2.30590823]
[1717360104920,0.00377898,67699.0,67698.0,2.23962249]
[1717360105302,0.00377898,67699.0,67698.0,2.25721925]
[1717360106927,0.00377898,67699.0,67698.0,2.32350499]
[1717360108624,0.00377898,67699.0,67698.0,2.25721925]
[1717360109068,0.00377898,67699.0,67698.0,2.30139861]
[1717360111360,0.00377898,67699.0,67698.0,2.21505111]
[1717360111729,0.00377898,67699.0,67698.0,2.26505111]
[1717360111925,0.00377898,67699.0,67698.0,2.25721925]
[1717360112124,0.00377898,67699.0,67698.0,2.26505111]
[1717360112353,0.00377898,67699.0,67698.0,2.5022808]
[1717360112483,0.00377898,67699.0,67698.0,2.30139861]
[1717360112684,0.00377898,67699.0,67698.0,2.5022808]
[1717360112891,0.00377898,67699.0,67698.0,2.30139861]
[1717360113101,0.00377898,67699.0,67698.0,2.5022808]
[1717360113899,0.00377898,67699.0,67698.0,2.45810144]
[1717360114330,0.00377898,67699.0,67698.0,2.50228681]
[1717360114932,0.00377898,67699.0,67698.0,2.45810144]
[1717360116771,0.0636525,67717.0,67698.0,2.45810144]
[1717360116772,0.009427,67718.0,67711.0,0.6295335]
[1717360116994,0.009427,67718.0,67715.0,1.0848795]
[1717360117199,0.009427,67718.0,67715.0,1.67509018]
[1717360117413,0.009427,67718.0,67715.0,1.73443768]
[1717360118023,0.009427,67718.0,67715.0,1.77143768]
[1717360118437,0.009427,67718.0,67715.0,2.06675143]
[1717360119255,0.009427,67718.0,67715.0,1.86586924]
[1717360119460,0.009427,67718.0,67715.0,2.06675143]
[1717360119661,0.009427,67718.0,67715.0,1.86586924]
[1717360119861,0.009427,67718.0,67715.0,2.06675143]
[1717360120064,0.009427,67718.0,67715.0,1.79252174]
[1717360120266,0.009427,67718.0,67715.0,1.81652174]
[1717360120492,0.009427,67718.0,67715.0,1.86652174]
[1717360124147,0.091727,67716.0,67715.0,1.86652174]
[1717360124766,0.009427,67716.0,67715.0,1.86652174]
[1717360125098,0.009427,67716.0,67715.0,1.81652174]
[1717360125318,0.009427,67716.0,67715.0,1.86652174]
[1717360129260,0.009427,67716.0,67715.0,1.88422853]
[1717360129861,0.009427,67716.0,67715.0,1.91050945]
[1717360134344,0.009427,67716.0,67715.0,1.86050945]
[1717360134508,0.009427,67716.0,67715.0,1.91050945]
[1717360140327,0.009427,67716.0,67715.0,1.91044439]
[1717360143138,0.009427,67716.0,67715.0,1.72866347]
[1717360143502,0.251127,67716.0,67715.0,1.72866347]
[1717360145089,0.251127,67716.0,67715.0,1.62866347]
[1717360145503,0.251127,67716.0,67715.0,1.94501956]
[1717360145709,0.251127,67716.0,67715.0,1.72866347]
[1717360146167,0.251127,67716.0,67715.0,1.31030847]
[1717360146379,0.251127,67716.0,67715.0,1.52666456]
[1717360148460,0.251127,67716.0,67715.0,1.47666456]
[1717360148798,0.251127,67716.0,67715.0,1.52666456]
[1717360149002,0.251127,67716.0,67715.0,1.31030847]
[1717360149656,0.251127,67716.0,67715.0,1.52666456]
[1717360149878,0.251127,67716.0,67715.0,1.31030847]
[1717360150301,0.3247795,67716.0,67715.0,0.91030847]
[1717360150505,0.3247795,67716.0,67715.0,0.98330847]
[1717360151549,0.3247795,67716.0,67715.0,0.66495347]
[1717360151984,0.3247795,67716.0,67715.0,0.6871163]
[1717360153045,0.3247795,67716.0,67715.0,0.66495347]
[1717360153830,0.3247795,67716.0,67715.0,0.59724668]
[1717360154031,0.3247795,67716.0,67715.0,0.64724668]
[1717360158005,0.3109795,67716.0,67715.0,0.64724668]
[1717360158219,0.3109795,67716.0,67715.0,0.57065185]
[1717360158644,0.3109795,67716.0,67715.0,0.52065185]
[1717360159062,0.3109795,67716.0,67715.0,0.37297485]
[1717360159476,0.3109795,67716.0,67715.0,0.33597485]
[1717360160325,0.3109795,67716.0,67715.0,0.37297485]
[1717360160540,0.3109795,67716.0,67715.0,0.33597485]
[1717360160960,0.3109795,67716.0,67715.0,0.40997485]
[1717360161417,0.3109795,67716.0,67715.0,0.37297485]
[1717360161646,0.3109795,67716.0,67715.0,0.40997485]
[1717360163353,0.3109795,67716.0,67715.0,0.25677791]
[1717360164454,0.31080175,67716.0,67715.0,0.25677791]
[1717360171260,0.31080175,67716.0,67715.0,0.25772391]
[1717360171667,0.31166175,67716.0,67715.0,0.25772391]
[1717360174199,0.31166175,67716.0,67715.0,0.30772391]
[1717360176892,0.31166175,67716.0,67715.0,0.46095809]
[1717360178963,0.31166175,67716.0,67715.0,0.41095809]
[1717360179156,0.31166175,67716.0,67715.0,0.46095809]
[1717360179764,0.00086,67716.0,67715.0,0.76043509]
[1717360179946,0.00086,67716.0,67715.0,0.78713509]
[1717360180120,0.00086,67716.0,67715.0,0.83713509]
[1717360180544,0.00086,67716.0,67715.0,0.81824457]
[1717360180752,0.00086,67716.0,67715.0,0.74424457]
[1717360180991,0.00086,67716.0,67715.0,0.78124457]
[1717360181203,0.00086,67716.0,67715.0,0.81824457]
[1717360181380,0.00086,67716.0,67715.0,0.78124457]
[1717360181801,0.00086,67716.0,67715.0,0.81824457]
[1717360183678,0.00086,67716.0,67715.0,0.78124457]
[1717360183881,0.00086,67716.0,67715.0,0.81824457]
[1717360195190,0.00086,67716.0,67715.0,0.66644457]
[1717360198703,0.00086,67716.0,67715.0,0.61644457]
[1717360198960,0.3176125,67716.0,67715.0,0.37395809]
[1717360207425,0.3176125,67716.0,67715.0,0.33695809]
[1717360208114,0.3176125,67716.0,67715.0,0.37395809]
[1717360208994,0.3176125,67716.0,67715.0,0.25772391]
[1717360209556,0.3176125,67716.0,67715.0,0.074946]
[1717360209768,0.3176125,67716.0,67715.0,0.111946]
[1717360209978,0.3186125,67716.0,67715.0,0.111946]
[1717360210455,0.4662875,67716.0,67715.0,0.111946]
[1717360215027,0.00186,67716.0,67715.0,0.30772391]
[1717360215253,0.00186,67716.0,67715.0,0.54942391]
[1717360216124,0.00186,67716.0,67715.0,0.30772391]
[1717360216339,0.00186,67716.0,67715.0,0.54942391]
[1717360217463,0.00186,67716.0,67715.0,0.70265067]
[1717360217689,0.00186,67716.0,67715.0,0.54942391]
[1717360219269,0.0655125,67716.0,67715.0,0.49942391]
[1717360219469,0.0655125,67716.0,67715.0,0.54942391]
[1717360219470,0.00186,67716.0,67715.0,0.54942391]
[1717360219679,0.00186,67716.0,67715.0,0.56672948]
[1717360220288,0.00186,67716.0,67715.0,0.71440648]
[1717360222517,0.00186,67716.0,67715.0,0.86763211]
[1717360227600,0.00186,67716.0,67715.0,0.99063211]
[1717360227948,0.00186,67716.0,67715.0,1.03491423]
[1717360228148,0.00186,67716.0,67715.0,1.20660226]
[1717360228355,0.00186,67716.0,67715.0,1.25088244]
[1717360228481,0.00186,67716.0,67715.0,1.50195726]
[1717360228883,0.00086,67716.0,67715.0,1.46495726]
[1717360229294,0.00086,67716.0,67715.0,1.47223043]
[1717360229497,0.00086,67716.0,67715.0,1.50923043]
[1717360229702,0.00086,67716.0,67715.0,1.47223043]
[1717360229911,0.00086,67716.0,67715.0,1.43523043]
[1717360230157,0.00086,67716.0,67715.0,1.50923043]
[1717360230486,0.00086,67716.0,67715.0,1.29326028]
[1717360230681,0.00086,67716.0,67715.0,2.01473043]
[1717360230888,0.00086,67716.0,67715.0,2.03688045]
[1717360231117,0.00086,67716.0,67715.0,1.97045726]
[1717360231327,0.00086,67716.0,67715.0,2.07318747]
[1717360231535,0.00086,67716.0,67715.0,2.00680476]
[1717360232415,0.00086,67716.0,67715.0,1.97045726]
[1717360233232,0.00086,67716.0,67715.0,1.75448711]
[1717360233476,0.00086,67716.0,67715.0,1.82084127]
[1717360234275,0.00086,67716.0,67715.0,1.85718877]
[1717360234747,0.009427,67728.0,67727.0,1.5701045]
[1717360234974,0.14000678,67749.0,67727.0,1.5701045]
[1717360234975,0.43733372,67748.0,67734.0,0.687636]
[1717360235201,0.43733372,67748.0,67745.0,0.487912]
[1717360235457,0.43733372,67748.0,67745.0,0.85991554]
[1717360235671,0.009427,67753.0,67745.0,0.85991554]
[1717360235899,0.0730795,67753.0,67745.0,0.85991554]
[1717360236360,0.009427,67753.0,67745.0,0.85991554]
[1717360236796,0.009427,67753.0,67745.0,0.93391554]
[1717360237010,0.009427,67753.0,67745.0,0.89691554]
[1717360237216,0.009427,67753.0,67745.0,0.85991554]
[1717360237422,0.009427,67753.0,67745.0,0.89691554]
[1717360237630,0.0736525,67755.0,67745.0,0.89691554]
[1717360238072,0.0830685,67756.0,67745.0,0.89691554]
[1717360238285,0.0830685,67756.0,67745.0,0.89682273]
[1717360238530,0.0830685,67756.0,67745.0,0.93382273]
[1717360238715,0.0736525,67755.0,67745.0,0.93382273]
[1717360238948,0.0636525,67754.0,67745.0,0.93382273]
[1717360239162,0.0736525,67754.0,67745.0,0.93382273]
[1717360239584,0.0736525,67755.0,67745.0,0.93382273]
[1717360240022,0.0736525,67754.0,67745.0,0.93382273]
[1717360240433,0.0736525,67753.0,67745.0,0.93382273]
[1717360240651,0.0736525,67751.0,67745.0,0.93382273]
[1717360241040,0.0736525,67754.0,67745.0,0.93382273]
[1717360241459,0.0736525,67751.0,67745.0,0.93382273]
[1717360241671,0.0736525,67754.0,67745.0,0.93382273]
[1717360241876,0.0736525,67755.0,67745.0,0.93382273]
[1717360242091,0.0830685,67756.0,67745.0,0.93382273]
[1717360242316,0.0736525,67755.0,67745.0,0.93382273]
[1717360243158,0.0736525,67754.0,67745.0,0.93382273]
[1717360243597,0.0736525,67755.0,67745.0,0.93382273]
[1717360243815,0.0736525,67755.0,67745.0,0.88382273]
[1717360244040,0.009416,67756.0,67745.0,0.93382273]
[1717360244041,0.0636525,67753.0,67745.0,0.93382273]
[1717360244259,0.009416,67756.0,67745.0,0.93382273]
[1717360244260,0.0736525,67755.0,67745.0,0.93382273]
[1717360244687,0.0736525,67755.0,67745.0,0.88382273]
[1717360244912,0.0736525,67754.0,67745.0,0.89682273]
[1717360245122,0.0736525,67755.0,67745.0,0.85982273]
[1717360245325,0.0736525,67755.0,67745.0,0.89682273]
[1717360245529,0.0736525,67755.0,67745.0,0.93382273]
[1717360246453,0.009416,67756.0,67745.0,0.93382273]
[1717360246454,0.0736525,67754.0,67745.0,0.93382273]
[1717360246872,0.0736525,67755.0,67745.0,0.93382273]
[1717360247098,0.0736525,67754.0,67745.0,0.93382273]
[1717360247307,0.0736525,67755.0,67745.0,0.93382273]
[1717360247738,0.0830685,67756.0,67745.0,0.93382273]
[1717360247944,0.0736525,67755.0,67745.0,0.93382273]
[1717360248150,0.0736525,67754.0,67745.0,0.9515107]
[1717360248379,0.0736525,67753.0,67745.0,0.9515107]
[1717360249231,0.0830685,67756.0,67745.0,0.9515107]
[1717360249435,0.009416,67756.0,67745.0,0.9515107]
[1717360249649,0.0830685,67756.0,67745.0,0.9515107]
[1717360249861,0.0736525,67755.0,67745.0,0.9515107]
[1717360250068,0.0736525,67754.0,67745.0,0.9515107]